{"text_format":"3","workbook":"xlsx","n_sheets":12,"sheets":["Seite 1","Seite 2","Seite 3","Seite 4","Seite 5","Seite 6","Seite 7","Attribute","Drucken","Eintragung","Kanzleidaten","Stammdaten"],"not_rendered":{"images":3,"macros":1,"defined_names":308},"read":"whole","date_system":"1900"}

{"sheet":"Seite 1","index":0,"n_rows":93,"n_cols":52,"rows_kept":93,"merged":[[0,3,0,17],[5,5,5,23],[5,46,5,59],[6,5,6,44],[8,5,8,13],[8,15,8,33],[9,5,9,45],[10,5,10,40],[11,5,11,34],[13,5,13,20],[14,5,14,26],[15,5,15,34],[16,5,16,59],[17,5,17,22],[18,5,18,7],[19,5,19,59],[21,5,21,8],[21,15,21,21],[21,27,21,31],[22,5,22,10],[22,15,22,23],[22,27,22,59],[24,5,24,8],[24,17,24,18],[25,5,25,12],[25,17,25,59],[27,5,27,8],[27,17,27,22],[27,51,27,54],[28,5,28,12],[28,17,28,48],[28,51,28,59],[29,5,29,22],[30,5,30,7],[31,5,31,59],[33,5,33,8],[33,15,33,21],[33,27,33,31],[34,5,34,10],[34,15,34,23],[34,27,34,59],[36,5,36,8],[36,17,36,18],[37,5,37,12],[37,17,37,59],[39,5,39,22],[40,5,40,7],[41,5,41,11],[41,15,41,21],[41,30,41,32],[42,5,42,9],[42,15,42,27],[42,30,42,59],[44,5,44,7],[45,5,45,59],[47,5,47,9],[48,5,48,59],[50,5,50,46],[51,5,51,59],[53,5,53,59],[55,5,55,31],[56,5,56,31],[56,33,56,34],[58,19,58,23],[59,7,59,8],[59,11,59,12],[59,14,59,15],[59,19,59,59],[61,19,61,24],[62,19,62,59],[64,19,64,22],[64,27,64,31],[64,36,64,41],[65,19,65,23],[65,27,65,33],[65,36,65,59],[67,19,67,22],[68,19,68,25],[68,29,68,59],[69,19,69,21],[70,19,70,24],[70,27,70,31],[70,40,70,43],[71,19,71,23],[71,27,71,36],[71,40,71,59],[74,19,74,23],[75,11,75,12],[75,14,75,15],[75,19,75,59],[77,19,77,24],[78,19,78,59],[80,19,80,22],[80,27,80,31],[80,36,80,41],[81,19,81,23],[81,27,81,33],[81,36,81,59],[83,19,83,22],[84,19,84,25],[84,29,84,59],[85,19,85,21],[86,19,86,24],[86,27,86,31],[86,40,86,43],[87,19,87,23],[87,27,87,36],[87,40,87,59],[90,19,90,31],[90,34,90,59],[92,7,92,20],[92,31,92,35],[92,48,92,59]]}
[]
[]
[]
[]
[]
[{"$nulls":5},"An das Finanzamt",{"$nulls":40},"Eingangsstempel oder -datum"]
[]
[]
[{"$nulls":5},"Steuernummer"]
[]
[{"$nulls":5},"Fragebogen zur steuerlichen Erfassung"]
[{"$nulls":5},"Gründung einer Personengesellschaft/-gemeinschaft"]
[]
[{"$nulls":5},"1. Allgemeine Angaben"]
[{"$nulls":5},"1.1 Angaben zum Unternehmen"]
[{"$nulls":5},"Firma (lt. Handelsregister) bzw. Name, unter der/dem die Gesellschaft/Gemeinschaft auftritt"]
[]
[{"$nulls":5},"Anschrift des Unternehmens"]
[{"$nulls":5},"Straße"]
[]
[]
[{"$nulls":5},"Hausnummer",{"$nulls":9},"Hausnummerzusatz",{"$nulls":11},"Adressergänzung"]
[]
[]
[{"$nulls":5},"Postleitzahl",{"$nulls":11},"Ort"]
[]
[]
[{"$nulls":5},"Postleitzahl",{"$nulls":11},"Ort (Postfach)",{"$nulls":33},"Postfach"]
[]
[{"$nulls":5},"ggf. abweichender Ort der Geschäftsleitung"]
[{"$nulls":5},"Straße"]
[]
[]
[{"$nulls":5},"Hausnummer",{"$nulls":9},"Hausnummerzusatz",{"$nulls":11},"Adressergänzung"]
[]
[]
[{"$nulls":5},"Postleitzahl",{"$nulls":11},"Ort"]
[]
[]
[{"$nulls":5}," Kommunikationsverbindungen"]
[{"$nulls":5},"Telefon:"]
[{"$nulls":5},"Vorwahl international",{"$nulls":9},"Vorwahl national",{"$nulls":14},"Rufnummer"]
[]
[]
[{"$nulls":5},"E-Mail"]
[]
[]
[{"$nulls":5},"Internetadresse"]
[]
[]
[{"$nulls":5}," Art der ausgeübten Tätigkeit(en) (genaue Bezeichnung des Gewerbezweiges)"]
[]
[]
[]
[]
[{"$nulls":5},"1.2 Betriebsstätten"]
[{"$nulls":5}," Werden in mehreren Gemeinden Betriebstätten unterhalten?",{"$nulls":26},"","Nein"]
[]
[{"$nulls":19},"Bezeichnung"]
[{"$nulls":7}," Ja",null,"0",null,"0",null,null,"1"]
[]
[{"$nulls":19},"Anschrift, Straße"]
[]
[]
[{"$nulls":19},"Hausnummer",{"$nulls":7},"Hausnummerzusatz",{"$nulls":8},"Adressergänzung"]
[]
[]
[{"$nulls":19},"Postleitzahl",{"$nulls":9},"Ort"]
[]
[{"$nulls":19},"Telefon:"]
[{"$nulls":19},"Vorwahl international",{"$nulls":7},"Vorwahl national",{"$nulls":12},"Rufnummer"]
[]
[]
[]
[{"$nulls":19},"Bezeichnung"]
[{"$nulls":9},"0",null,"0",null,null,"2"]
[]
[{"$nulls":19},"Anschrift, Straße"]
[]
[]
[{"$nulls":19},"Hausnummer",{"$nulls":7},"Hausnummerzusatz",{"$nulls":8},"Adressergänzung"]
[]
[]
[{"$nulls":19},"Postleitzahl",{"$nulls":9},"Ort"]
[]
[{"$nulls":19},"Telefon:"]
[{"$nulls":19},"Vorwahl international",{"$nulls":7},"Vorwahl national",{"$nulls":12},"Rufnummer"]
[]
[]
[]
[{"$nulls":19},"Bei mehr als zwei Betriebstätten:",{"$nulls":14},"Gesonderte Aufstellung ist beigefügt."]
[]
[{"$nulls":7},"2016FsEPG021",{"$nulls":23},"- Juni 2016 -",{"$nulls":16},"    2016FsEPG021       "]

{"sheet":"Seite 2","index":1,"n_rows":91,"n_cols":55,"rows_kept":91,"merged":[[0,3,0,17],[2,3,2,59],[6,4,6,12],[6,13,6,32],[8,4,8,19],[9,4,9,58],[10,4,10,58],[11,4,11,30],[13,4,13,45],[14,4,14,46],[15,4,15,47],[16,4,16,46],[17,4,17,58],[19,5,19,19],[19,20,19,32],[19,37,19,47],[19,48,19,58],[21,5,21,19],[21,20,21,32],[21,37,21,47],[21,48,21,58],[23,4,23,15],[24,4,24,58],[25,4,25,7],[26,4,26,7],[26,42,26,45],[27,4,27,39],[27,42,27,58],[29,4,29,7],[30,4,30,58],[32,4,32,8],[32,13,32,18],[32,23,32,28],[33,4,33,10],[33,13,33,20],[33,23,33,58],[35,4,35,9],[35,15,35,16],[36,4,36,11],[36,15,36,58],[38,4,38,9],[38,34,38,39],[39,4,39,30],[39,34,39,53],[41,4,41,18],[42,4,42,20],[44,4,44,33],[45,6,45,24],[45,27,45,58],[47,6,47,24],[47,27,47,58],[49,6,49,24],[49,27,49,58],[51,6,51,24],[51,27,51,58],[53,12,53,32],[54,6,54,11],[54,12,54,58],[57,4,57,38],[57,39,57,50],[57,51,57,58],[59,4,59,25],[60,6,60,9],[60,11,60,22],[60,23,60,29],[60,32,60,34],[60,39,60,52],[62,6,62,22],[62,39,62,54],[64,4,64,12],[64,39,64,40],[64,42,64,53],[64,54,64,58],[66,4,66,5],[67,4,67,58],[69,4,69,10],[70,4,70,30],[72,4,72,58],[73,4,73,38],[74,4,74,7],[75,4,75,57],[77,4,77,6],[78,4,78,20],[80,4,80,12],[81,4,81,58],[83,16,83,45],[84,5,84,10],[84,11,84,15],[84,16,84,58],[85,4,85,58],[86,6,86,48],[90,7,90,18],[90,49,90,58]]}
[]
[]
[{"$nulls":3},""]
[]
[]
[]
[{"$nulls":4},"Steuernummer",{"$nulls":8},{"$f":"IF(ZFaSteuernummer=\"\",\"\",ZFaSteuernummer)","v":""}]
[]
[{"$nulls":4}," 1.3 Gründungsform"]
[{"$nulls":4}," Bitte den von allen Gesellschaftern/Beteiligten unterschriebenen Gesellschaftsvertrag beifügen! Falls ein schriftlicher Vertrag nicht abge-"]
[{"$nulls":4}," schlossen wurde, fügen Sie bitte eine von allen Gesellschaftern/Beteiligten unterschriebene Erklärung über die gesellschaftsrechtlichen Ver-"]
[{"$nulls":4}," einbarungen bei, insbesondere zu nachfolgenden Punkten:"]
[]
[{"$nulls":4}," - Wer ist zur Vertretung und Geschäftsführung der Gesellschaft/Gemeinschaft befugt?"]
[{"$nulls":4}," - In welcher Höhe sind die Gesellschafter/Beteiligten am Gewinn oder Verlust beteiligt?"]
[{"$nulls":4}," - In welcher Höhe sind die Gesellschafter/Beteiligten am Vermögen beteiligt?"]
[{"$nulls":4}," - Welche Regelungen gelten für die Kündigung der Gesellschaft/Gemeinschaft?"]
[{"$nulls":4}," - Wie soll die Auseinandersetzung für den Fall der Auflösung der Gesellschaft/Gemeinschaft oder des Ausscheidens erfolgen?"]
[]
[{"$nulls":5},"Neugründung zum (TT.MM.JJJJ)",{"$nulls":31},"Verlegung zum (TT.MM.JJJJ)"]
[]
[{"$nulls":5},"Vererbung, Schenkung) zum",{"$nulls":31},"gung/Verschmelzung"]
[]
[{"$nulls":4},"Vorheriges Unternehmen: Firma"]
[]
[{"$nulls":4},"oder"]
[{"$nulls":4},"Name",{"$nulls":37},"Vorname"]
[]
[]
[{"$nulls":4},"Straße"]
[]
[]
[{"$nulls":4},"Hausnummer",{"$nulls":8},"Hausnummerzusatz",{"$nulls":9},"Adressergänzung"]
[]
[]
[{"$nulls":4},"Postleitzahl",{"$nulls":10},"Ort"]
[]
[]
[{"$nulls":4},"Finanzamt",{"$nulls":29},"Steuernummer"]
[]
[]
[{"$nulls":4},"ggf. Umsatzsteuer-Identifikationsnummer"]
[]
[]
[{"$nulls":4},"1.4 Rechtsform der Gesellschaft/Gemeinschaft"]
[{"$nulls":6},"GbR (Gesellschaft bürgerlichen Rechts)",{"$nulls":20},"Atypische stille Gesellschaft"]
[]
[{"$nulls":6},"OHG (Offene Handelsgesellschaft)",{"$nulls":20},"Erbengemeinschaft"]
[]
[{"$nulls":6},"KG (Kommanditgesellschaft)",{"$nulls":20},"GmbH & Co. KG (Bitte zusätzlich auch Gesellschaftsvertrag der GmbH beifügen!)"]
[]
[{"$nulls":6},"Grundstücksgemeinschaft",{"$nulls":20},"Partnerreedereien"]
[]
[{"$nulls":12},"Angabe der Rechtsform (z. B. Partnerschaftsgesellschaft, Arge)"]
[{"$nulls":6},"Sonstiges"]
[]
[]
[{"$nulls":4},"1.5 Beginn der Tätigkeit  (inklusiveVorbereitungshandlungen)",{"$nulls":46},"    (TT.MM.JJJJ)"]
[]
[{"$nulls":4},"1.6 Handelsregistereintragung"]
[{"$nulls":6},"Ja, seit",{"$nulls":16},"  (TT.MM.JJJJ)",{"$nulls":8},"Nein",{"$nulls":5},""," Eine Eintragung ist beabsichtigt."]
[]
[{"$nulls":39}," Antrag beim Handelsregister gestellt"]
[]
[{"$nulls":4},"beim Amtsgericht",{"$nulls":34}," am",{"$nulls":14},"  (TT.MM.JJJJ)"]
[]
[{"$nulls":4},"Ort"]
[]
[]
[{"$nulls":4},"Registernummer"]
[]
[]
[{"$nulls":4},"1.7 Bankverbindung/SEPA-Lastschriftverfahren"]
[{"$nulls":4},"Alle Steuererstattungen sollen an folgende Bankverbindung erfolgen:"]
[{"$nulls":4},"IBAN"]
[]
[]
[{"$nulls":4},"BIC"]
[]
[]
[{"$nulls":4},"Geldinstitut (Name, Ort)"]
[{"$nulls":4},""]
[]
[{"$nulls":16},"Kontoinhaber(in), sofern das Konto nicht auf den Namen der Gesellschaft/Gemeinschaft lautet:"]
[{"$nulls":5}," lt. Zeile 3",{"$nulls":5},"oder:  ",{"$nulls":4},""]
[{"$nulls":4},"Möchten Sie am SEPA-Lastschriftverfahren, dem für beide Seiten einfachsten Zahlungsweg, teilnehmen?"]
[{"$nulls":6},"Ja. Das ausgefüllte SEPA-Lastschriftmandat ist beigefügt."]
[]
[]
[]
[{"$nulls":7},"2016FsEPG022",{"$nulls":41},"2016FsEPG022       "]

{"sheet":"Seite 3","index":2,"n_rows":87,"n_cols":55,"rows_kept":87,"merged":[[0,4,0,14],[2,4,2,62],[6,5,6,13],[6,14,6,35],[8,5,8,29],[10,7,10,16],[10,23,10,37],[12,5,12,7],[13,5,13,61],[14,5,14,7],[15,5,15,7],[15,44,15,47],[16,5,16,40],[16,44,16,61],[18,5,18,7],[19,5,19,61],[21,5,21,8],[21,14,21,19],[21,25,21,31],[22,5,22,10],[22,14,22,21],[22,25,22,61],[24,5,24,9],[24,15,24,16],[25,5,25,12],[25,15,25,61],[27,5,27,9],[27,15,27,19],[27,54,27,57],[28,5,28,12],[28,15,28,50],[28,54,28,61],[30,5,30,9],[31,5,31,17],[31,23,31,34],[31,36,31,52],[32,5,32,18],[33,5,33,8],[34,5,34,12],[34,14,34,19],[34,29,34,33],[35,5,35,10],[35,14,35,26],[35,29,35,61],[37,5,37,12],[37,14,37,19],[37,29,37,33],[38,5,38,10],[38,14,38,26],[38,29,38,61],[40,5,40,7],[41,5,41,61],[43,5,43,10],[44,5,44,61],[46,5,46,8],[46,36,46,39],[47,5,47,33],[47,36,47,56],[49,5,49,18],[50,5,50,21],[53,5,53,20],[53,23,53,26],[53,31,53,32],[55,5,55,7],[56,5,56,61],[57,5,57,7],[58,5,58,7],[58,44,58,47],[59,5,59,40],[59,44,59,61],[61,5,61,7],[62,5,62,61],[64,5,64,8],[64,14,64,19],[64,25,64,31],[65,5,65,10],[65,14,65,21],[65,25,65,61],[67,5,67,9],[67,15,67,16],[68,5,68,12],[68,15,68,61],[70,5,70,9],[70,15,70,19],[70,54,70,57],[71,5,71,12],[71,15,71,50],[71,54,71,61],[72,5,72,19],[73,5,73,7],[74,5,74,12],[74,14,74,19],[74,29,74,33],[75,5,75,10],[75,14,75,26],[75,29,75,61],[77,5,77,7],[78,5,78,61],[86,7,86,18],[86,49,86,61]]}
[]
[]
[{"$nulls":4},""]
[]
[]
[]
[{"$nulls":5},"Steuernummer",{"$nulls":8},{"$f":"IF(ZFaSteuernummer=\"\",\"\",ZFaSteuernummer)","v":""}]
[]
[{"$nulls":5},"1.8 Vertretung der Gesellschaft/Gemeinschaft"]
[]
[{"$nulls":7},"Geschäftsführer(in)",{"$nulls":13},"",null,"Gesellschafter(in)/Beteiligte(r)"]
[]
[{"$nulls":5},"Firma:"]
[]
[{"$nulls":5},"oder"]
[{"$nulls":5},"Name",{"$nulls":38},"Vorname"]
[]
[]
[{"$nulls":5},"Straße"]
[]
[]
[{"$nulls":5},"Hausnummer",{"$nulls":8},"Hausnummerzusatz",{"$nulls":10},"Adressergänzung"]
[]
[]
[{"$nulls":5},"Postleitzahl",{"$nulls":9},"Ort"]
[]
[]
[{"$nulls":5},"Postleitzahl",{"$nulls":9},"Ort (Postfach)",{"$nulls":38},"Postfach"]
[]
[]
[{"$nulls":5},"Geburtsdatum"]
[{"$nulls":23},"Identifikationsnummer"]
[{"$nulls":5},"Kommunikationsverbindungen"]
[{"$nulls":5},"Telefon:"]
[{"$nulls":5},"Vorwahl international",{"$nulls":8},"Vorwahl national",{"$nulls":14},"Rufnummer"]
[]
[]
[{"$nulls":5},"Vorwahl international",{"$nulls":8},"Vorwahl national",{"$nulls":14},"Rufnummer"]
[]
[]
[{"$nulls":5},"E-Mail"]
[]
[]
[{"$nulls":5},"Internetadresse"]
[]
[]
[{"$nulls":5},"Finanzamt",{"$nulls":30},"Steuernummer"]
[]
[]
[{"$nulls":5},"ggf. Umsatzsteuer-Identifikationsnummer"]
[]
[]
[]
[{"$nulls":5},"1.9 Steuerliche Beratung",{"$nulls":17},"Nein",{"$nulls":7},"Ja"]
[]
[{"$nulls":5},"Firma"]
[]
[{"$nulls":5},"oder"]
[{"$nulls":5},"Name",{"$nulls":38},"Vorname"]
[]
[]
[{"$nulls":5},"Straße"]
[]
[]
[{"$nulls":5},"Hausnummer",{"$nulls":8},"Hausnummerzusatz",{"$nulls":10},"Adressergänzung"]
[]
[]
[{"$nulls":5},"Postleitzahl",{"$nulls":9},"Ort"]
[]
[]
[{"$nulls":5},"Postleitzahl",{"$nulls":9},"Ort (Postfach)",{"$nulls":38},"Postfach"]
[]
[{"$nulls":5},"Kommunikationsverbindungen"]
[{"$nulls":5},"Telefon:"]
[{"$nulls":5},"Vorwahl international",{"$nulls":8},"Vorwahl national",{"$nulls":14},"Rufnummer"]
[]
[]
[{"$nulls":5},"E-Mail"]
{"$rows_empty":8}
[{"$nulls":7},"2016FsEPG023",{"$nulls":39}," ",null," 2016FsEPG023       "]

{"sheet":"Seite 4","index":3,"n_rows":94,"n_cols":58,"rows_kept":94,"merged":[[0,3,0,18],[2,3,2,65],[6,4,6,12],[6,13,6,33],[8,4,8,64],[9,4,9,64],[11,6,11,64],[12,4,12,10],[13,4,13,6],[14,4,14,64],[15,4,15,6],[16,4,16,6],[16,43,16,48],[17,4,17,39],[17,43,17,64],[19,4,19,6],[20,4,20,64],[22,4,22,7],[22,13,22,19],[22,24,22,29],[23,4,23,9],[23,13,23,21],[23,24,23,64],[25,4,25,7],[25,16,25,17],[26,4,26,11],[26,16,26,64],[28,4,28,7],[28,16,28,19],[28,57,28,60],[29,4,29,11],[29,16,29,52],[29,57,29,64],[30,4,30,18],[31,4,31,6],[32,4,32,11],[32,13,32,19],[32,28,32,30],[33,4,33,9],[33,13,33,24],[33,28,33,64],[35,4,35,6],[36,4,36,64],[38,5,38,42],[41,4,41,6],[41,8,41,64],[42,8,42,64],[43,9,43,17],[44,9,44,64],[46,9,46,13],[46,39,46,45],[47,9,47,37],[47,39,47,63],[49,13,49,15],[50,4,50,12],[50,13,50,64],[52,4,52,12],[52,13,52,39],[54,4,54,30],[56,4,56,64],[59,4,59,58],[61,37,61,51],[61,54,61,64],[62,4,62,6],[62,37,62,51],[63,4,63,6],[63,37,63,51],[63,54,63,64],[65,4,65,30],[65,38,65,50],[65,54,65,64],[66,59,66,63],[68,15,69,36],[68,38,69,50],[68,54,69,64],[69,4,70,11],[71,15,71,36],[71,38,71,50],[71,54,71,64],[73,15,73,36],[73,38,73,50],[73,54,73,64],[76,15,77,36],[76,38,77,50],[76,54,77,64],[77,4,78,11],[78,15,78,36],[79,15,79,36],[79,38,79,50],[79,54,79,64],[81,15,81,36],[81,38,81,50],[81,54,81,64],[84,4,84,11],[84,15,85,36],[84,38,85,50],[84,54,85,64],[85,4,86,11],[87,15,87,36],[87,38,87,50],[87,54,87,64],[89,15,89,36],[89,38,89,50],[89,54,89,64],[93,6,93,18],[93,52,93,64]]}
[]
[]
[{"$nulls":3},""]
[]
[]
[]
[{"$nulls":4},"Steuernummer",{"$nulls":8},{"$f":"IF(ZFaSteuernummer=\"\",\"\",ZFaSteuernummer)","v":""}]
[]
[{"$nulls":4},"1.10 Gemeinsame(r) von allen Gesellschaftern/Gemeinschaftern bestellte(r) Empfangsbevollmächtigte(r)"]
[{"$nulls":4},"         nach § 183 Abs. 1 Satz 1 Abgabenordnung (AO) bei der gesonderten und einheitlichen Feststellung"]
[]
[{"$nulls":6},"Die unter Tz. 1.9 angegebene steuerliche Beratung ist empfangsbevollmächtigt. Die gesonderte Vollmacht ist beigefügt."]
[{"$nulls":4},"oder"]
[{"$nulls":4},"Firma"]
[]
[{"$nulls":4},"oder"]
[{"$nulls":4},"Name",{"$nulls":38},"Vorname"]
[]
[]
[{"$nulls":4},"Straße"]
[]
[]
[{"$nulls":4},"Hausnummer",{"$nulls":8},"Hausnummerzusatz",{"$nulls":10},"Adressergänzung"]
[]
[]
[{"$nulls":4},"Postleitzahl",{"$nulls":11},"Ort"]
[]
[]
[{"$nulls":4},"Postleitzahl",{"$nulls":11},"Ort (Postfach)",{"$nulls":40},"Postfach"]
[]
[{"$nulls":4},"Kommunikationsverbindungen"]
[{"$nulls":4},"Telefon:"]
[{"$nulls":4},"Vorwahl international",{"$nulls":8},"Vorwahl national",{"$nulls":14},"Rufnummer"]
[]
[]
[{"$nulls":4},"E-Mail"]
[]
[]
[{"$nulls":5}," Die gesonderte Vollmacht ist beigefügt."]
[]
[]
[{"$nulls":4},"1.11",{"$nulls":3}," Die Gesellschaft gehört zu einem Konzern."]
[{"$nulls":8}," Angaben zum herrschenden Unternehmen"]
[{"$nulls":9},"Name des Konzerns"]
[]
[]
[{"$nulls":9},"Finanzamt",{"$nulls":29},"Steuernummer"]
[]
[]
[{"$nulls":13},"Ort"]
[{"$nulls":4},"Beim Amtsgericht"]
[]
[{"$nulls":4},"Registernummer"]
[]
[{"$nulls":4},"2. Angaben zu den Gesellschaftern/Beteiligten"]
[]
[{"$nulls":4}," (Bitte füllen Sie hierzu die Anlage FB aus und fügen diese bei.)"]
[]
[]
[{"$nulls":4},"3. Angaben zur Festsetzung von Vorauszahlungen (Gewerbesteuer, Einkommensteuer)"]
[]
[{"$nulls":37},"im Jahr",{"$nulls":16},"im Folgejahr"]
[{"$nulls":37},"der Betriebseröffnung"]
[{"$nulls":37},"EUR",{"$nulls":16},"EUR"]
[]
[{"$nulls":4},"Voraussichtlicher Gewinn der Gesellschaft"]
[]
[]
[{"$nulls":15},"3.1  voraussichtlicher Gewinnanteil"]
[{"$nulls":4},"0 0 0 0 1"]
[]
[{"$nulls":15},"3.2  Sonderbetriebseinnahmen"]
[]
[{"$nulls":15},"3.3  Sonderbetriebsausgaben"]
[]
[]
[{"$nulls":15},"3.1  voraussichtlicher Gewinnanteil"]
[{"$nulls":4},"0 0 0 0 2"]
[]
[{"$nulls":15},"3.2  Sonderbetriebseinnahmen"]
[]
[{"$nulls":15},"3.3  Sonderbetriebsausgaben"]
[]
[]
[{"$nulls":15},"3.1  voraussichtlicher Gewinnanteil"]
[{"$nulls":4},"0 0 0 0 3"]
[]
[{"$nulls":15},"3.2  Sonderbetriebseinnahmen"]
[]
[{"$nulls":15},"3.3  Sonderbetriebsausgaben"]
[]
[]
[]
[{"$nulls":6},"2016FsEPG024",{"$nulls":45},"2016FsEPG024       "]

{"sheet":"Seite 5","index":4,"n_rows":85,"n_cols":54,"rows_kept":85,"merged":[[0,3,0,19],[2,3,2,66],[6,13,6,36],[8,4,8,27],[9,13,9,14],[10,4,10,16],[10,18,10,19],[10,21,10,36],[12,18,12,19],[12,21,12,36],[14,18,14,19],[14,21,14,60],[16,18,16,19],[16,21,16,32],[16,33,16,65],[19,4,19,16],[19,18,19,19],[19,21,19,36],[22,4,22,34],[23,18,23,19],[23,21,23,22],[23,25,23,26],[23,27,23,29],[23,31,23,34],[23,35,23,47],[23,48,23,56],[26,4,26,52],[26,53,26,63],[28,4,28,65],[29,4,29,39],[31,6,31,65],[34,4,34,41],[36,4,36,16],[36,30,36,41],[37,4,37,11],[37,13,38,20],[37,21,38,27],[37,30,37,39],[37,41,38,45],[37,48,37,60],[37,61,38,65],[38,4,38,10],[38,30,38,39],[38,48,38,60],[41,4,41,19],[41,22,41,34],[41,35,41,43],[44,4,44,20],[45,4,45,20],[45,22,46,22],[45,23,45,29],[45,36,46,37],[45,38,45,47],[45,49,46,50],[45,51,45,56],[46,4,46,20],[46,23,46,33],[46,38,46,47],[46,51,46,64],[49,4,49,60],[51,4,51,8],[51,45,51,48],[52,4,52,65],[54,4,54,6],[55,4,55,65],[57,4,57,7],[57,13,57,21],[57,27,57,32],[58,4,58,9],[58,13,58,23],[58,27,58,65],[60,4,60,8],[60,16,60,17],[61,4,61,11],[61,16,61,65],[84,6,84,21],[84,53,84,65]]}
[]
[]
[{"$nulls":3},""]
[]
[]
[]
[{"$nulls":4},"Steuernummer",{"$nulls":8},{"$f":"IF(ZFaSteuernummer=\"\",\"\",ZFaSteuernummer)","v":""}]
[]
[{"$nulls":4},"4. Angaben zur Gewinnermittlung"]
[]
[{"$nulls":4},"Gewinnermittlungsart",{"$nulls":16},"Einnahmenüberschussrechnung"]
[]
[{"$nulls":21},"Vermögensvergleich (Bilanz)"]
[]
[{"$nulls":18},"",null,null,"Gewinnermittlung nach Durchschnittssätzen (nur bei Land- und Forstwirtschaft)"]
[]
[{"$nulls":18},"",null,null,"Sonstige (z. B. § 5a EStG)"]
[]
[]
[{"$nulls":4},"Art der Aufteilung",{"$nulls":13},"",null,null,"Bitte 1, 2, 3 oder 0 eintragen."]
[]
[]
[{"$nulls":4},"Liegt ein vom Kalenderjahr abweichendes Wirtschaftsjahr vor?"]
[{"$nulls":21},"Nein",{"$nulls":5}," Ja,",{"$nulls":3},"Beginn",{"$nulls":16},"     (TT.MM.JJJJ)"]
[]
[]
[{"$nulls":4},"5. Freistellungsbescheinigung gemäß § 48b Einkommensteuergesetz (EStG)",{"$nulls":48}," (\"Bauabzugsteuer\")"]
[]
[{"$nulls":4},"Das Merkblatt zum Steuerabzug bei Bauleistungen steht Ihnen im Internet unter www.bzst.de zum Download zur Verfügung."]
[{"$nulls":4},"Sie können es aber auch bei Ihrem Finanzamt erhalten."]
[]
[{"$nulls":6},"Wir beantragen die Erteilung einer Bescheinigung zur Freistellung vom Steuerabzug bei Bauleistungen gemäß § 48b EStG."]
[]
[]
[{"$nulls":4},"6. Angaben zur Anmeldung und Abführung der Lohnsteuer"]
[]
[{"$nulls":4},"Zahl der Arbeitnehmer",{"$nulls":25},"a) davon Familienange-"]
[{"$nulls":4},"(einschließlich",{"$nulls":8},"Insgesamt",{"$nulls":16},"    hörige der Gesell-",{"$nulls":17},"b) davon geringfügig"]
[{"$nulls":4},"Aushilfskräfte)",{"$nulls":25},"    schafter/Beteiligten",{"$nulls":17},"    Beschäftigte"]
[]
[]
[{"$nulls":4},"Beginn der Lohnzahlungen",{"$nulls":30},"       (TT.MM.JJJJ)"]
[]
[]
[{"$nulls":4},"Anmeldungszeitraum"]
[{"$nulls":4},"(voraussichtliche Lohnsteuer",{"$nulls":18}," monatlich",{"$nulls":14}," vierteljährlich",{"$nulls":12}," jährlich"]
[{"$nulls":4},"im Kalenderjahr)",{"$nulls":18}," (mehr als 4.000 EUR)",{"$nulls":14}," (mehr als 1.080 EUR)",{"$nulls":12}," (nicht mehr als 1.080 EUR)"]
[]
[]
[{"$nulls":4},"Die für die Lohnberechnung maßgebenden Lohnbestandteile werden zusammengefasst im Betrieb/Betriebsteil:"]
[]
[{"$nulls":4},"Bezeichnung"]
[]
[]
[{"$nulls":4},"Straße"]
[]
[]
[{"$nulls":4},"Hausnummer",{"$nulls":8},"Hausnummerzusatz",{"$nulls":13},"Adressergänzung"]
[]
[]
[{"$nulls":4},"Postleitzahl",{"$nulls":11},"Ort"]
{"$rows_empty":23}
[{"$nulls":6},"2016FsEPG025",{"$nulls":46},"2016FsEPG025       "]

{"sheet":"Seite 6","index":5,"n_rows":93,"n_cols":57,"rows_kept":93,"merged":[[0,3,0,12],[2,3,2,59],[6,4,6,11],[6,12,6,30],[8,4,8,34],[9,4,9,15],[9,16,9,26],[9,31,9,41],[10,6,10,13],[10,16,10,26],[10,31,10,41],[11,16,11,26],[11,31,11,41],[13,4,13,49],[14,4,14,58],[15,6,15,7],[15,13,15,14],[15,18,15,38],[17,4,17,23],[18,4,19,4],[18,6,18,58],[19,6,19,58],[21,6,22,58],[23,4,24,4],[23,6,23,58],[24,6,24,58],[25,6,25,58],[27,4,27,26],[29,6,29,33],[31,4,31,6],[32,4,32,58],[34,4,34,6],[35,4,35,58],[37,4,37,7],[37,12,37,17],[37,21,37,26],[38,4,38,9],[38,12,38,19],[38,21,38,58],[40,4,40,8],[40,13,40,14],[41,4,41,10],[41,13,41,58],[43,4,43,8],[43,13,43,17],[43,49,43,53],[44,4,44,10],[44,13,44,45],[44,49,44,58],[46,4,46,8],[47,4,47,58],[49,4,49,14],[50,4,50,13],[50,14,50,15],[50,16,50,25],[52,4,52,7],[52,31,52,35],[53,4,53,28],[53,31,53,51],[55,4,55,24],[55,25,55,40],[56,4,56,41],[58,4,58,15],[59,4,59,35],[60,16,60,25],[61,6,61,7],[61,13,61,14],[61,16,61,45],[61,46,61,50],[61,51,61,55],[61,56,61,58],[63,4,63,12],[64,4,64,54],[65,16,65,25],[66,6,66,7],[66,13,66,14],[66,16,66,41],[66,42,66,50],[66,51,66,55],[66,56,66,58],[68,4,68,25],[69,4,69,54],[70,16,70,25],[71,6,71,7],[71,13,71,14],[71,16,71,41],[71,42,71,50],[71,51,71,55],[71,56,71,58],[73,4,73,24],[75,4,75,19],[75,21,75,40],[77,21,77,56],[79,22,80,22],[79,24,79,58],[80,24,81,58],[83,22,84,22],[83,24,83,58],[84,24,85,58],[88,22,89,22],[88,24,89,58],[92,6,92,16],[92,45,92,58]]}
[]
[]
[{"$nulls":3},""]
[]
[]
[]
[{"$nulls":4},"Steuernummer",{"$nulls":7},{"$f":"IF(ZFaSteuernummer=\"\",\"\",ZFaSteuernummer)","v":""}]
[]
[{"$nulls":4},"7. Angaben zur Anmeldung und Abführung der Umsatzsteuer"]
[{"$nulls":4},"7.1 Summe der Umsätze",{"$nulls":11},"im Jahr der Betriebseröffnung",{"$nulls":14},"im Folgejahr"]
[{"$nulls":6},"(geschätzt)",{"$nulls":9},"EUR",{"$nulls":14},"EUR"]
[]
[]
[{"$nulls":4},"7.2 Geschäftsveräußerung im Ganzen (§ 1 Abs. 1a Umsatzsteuergesetz (UStG) )"]
[{"$nulls":4},"Es wurde ein Unternehmen oder ein in der Gliederung eines Unternehmens gesondert geführter Betrieb erworben:"]
[{"$nulls":6},"Nein",{"$nulls":6}," Ja",{"$nulls":4},"(siehe Eintragungen zu Tz. 1.3 Übernahme)"]
[]
[{"$nulls":4},"7.3 Kleinunternehmer-Regelung"]
[{"$nulls":6},"Der auf das Kalenderjahr hochgerechnete Gesamtumsatz wird die Grenze von 17.500 EUR voraussichtlich nicht überschreiten."]
[]
[]
[{"$nulls":6},"Hinweis: Angaben zu Tz. 7.8 sind nicht erforderlich; Umsatzsteuer-Voranmeldungen sind grundsätzlich nicht zu übermitteln."]
[]
[{"$nulls":6},"Der auf das Kalenderjahr hochgerechnete Gesamtumsatz wird die Grenze von 17.500 EUR voraussichtlich nicht überschreiten."]
[]
[{"$nulls":6},"Die Besteuerung erfolgt nach den allgemeinen Vorschriften des Umsatzsteuergesetzes für mindestens fünf Kalenderjahre"]
[]
[{"$nulls":4},"7.4 Organschaft (§ 2 Abs. 2 Nr. 2 UStG)"]
[]
[{"$nulls":6},"Die Gesellschaft ist Organträger folgender Organgesellschaft:"]
[]
[{"$nulls":4},"Firma"]
[]
[]
[{"$nulls":4},"Straße"]
[]
[]
[{"$nulls":4},"Hausnummer",{"$nulls":7},"Hausnummerzusatz",{"$nulls":8},"Adressergänzung"]
[]
[]
[{"$nulls":4},"Postleitzahl",{"$nulls":8},"Ort"]
[]
[]
[{"$nulls":4},"Postleitzahl",{"$nulls":8},"Ort (Postfach)",{"$nulls":35},"Postfach"]
[]
[]
[{"$nulls":4},"Rechtsform"]
[]
[]
[{"$nulls":4},"Beteiligungsverhältnis (Bruchteil)"]
[{"$nulls":14},"/"]
[]
[{"$nulls":4},"Finanzamt",{"$nulls":26},"Steuernummer"]
[]
[]
[{"$nulls":4},"ggf. Umsatzsteuer-Identifikationsnummer (USt-IdNr.)"]
[{"$nulls":4},"Hinweis: Weitere organschaftliche Verbindungen bitte in einer Anlage (formlos) mitteilen."]
[]
[{"$nulls":4},"7.5 Steuerbefreiung"]
[{"$nulls":4},"Es werden ganz oder teilweise steuerfreie Umsätze gem. § 4 UStG ausgeführt:"]
[{"$nulls":16},"Art des Umsatzes/der Tätigkeit"]
[{"$nulls":4},"",null,"Nein",{"$nulls":6}," Ja",{"$nulls":32},"(§ 4 Nr.",{"$nulls":9}," UStG)"]
[]
[{"$nulls":4},"7.6 Steuersatz"]
[{"$nulls":4},"Es werden Umsätze ausgeführt, die ganz oder teilweise dem ermäßigten Steuersatz gem. § 12 Abs. 2 UStG unterliegen:"]
[{"$nulls":16},"Art des Umsatzes/der Tätigkeit"]
[{"$nulls":6},"Nein",{"$nulls":6}," Ja",{"$nulls":28},"(§ 12 Abs. 2 Nr.",{"$nulls":13}," UStG)"]
[]
[{"$nulls":4},"7.7 Durchschnittssatzbesteuerung"]
[{"$nulls":4},"Es werden ganz oder teilweise Umsätze ausgeführt, die der Durchschnittssatzbesteuerung gem. § 24 UStG unterliegen:"]
[{"$nulls":16},"Art des Umsatzes/der Tätigkeit"]
[{"$nulls":6},"Nein",{"$nulls":5},""," Ja",{"$nulls":28},"(§ 24 Abs. 1 Nr.",{"$nulls":13}," UStG)"]
[]
[{"$nulls":4},"7.8 Soll-/Istversteuerung der Entgelte"]
[]
[{"$nulls":4},"Die Umsatzsteuer wird berechnet nach",{"$nulls":16}," vereinbarten Entgelten (Sollversteuerung)."]
[]
[{"$nulls":21}," vereinnahmten Entgelten. Es wird hiermit die Istversteuerung beantragt, weil"]
[]
[{"$nulls":24},"der auf das Kalenderjahr hochgerechnete Gesamtumsatz für das Gründungsjahr"]
[{"$nulls":24},"voraussichtlich nicht mehr als 500.000 EUR betragen wird."]
[]
[]
[{"$nulls":24},"die Gesellschaft von der Verpflichtung, Bücher zu führen und auf Grund jährlicher"]
[{"$nulls":24},"Bestandsaufnahmen regelmäßig Abschlüsse zu machen, nach § 148 AO"]
[]
[]
[]
[{"$nulls":24},"§ 18 Abs. 1 Nr. 1 EStG ausführt und weder buchführungspflichtig ist noch"]
[]
[]
[]
[{"$nulls":6},"2016FsEPG026",{"$nulls":38},"2016FsEPG026       "]

{"sheet":"Seite 7","index":6,"n_rows":81,"n_cols":62,"rows_kept":81,"merged":[[0,3,0,18],[2,3,2,73],[6,4,6,11],[6,12,6,38],[9,4,9,38],[11,6,11,72],[12,6,12,72],[14,6,14,72],[16,6,16,9],[16,10,16,32],[16,36,16,45],[16,46,16,60],[16,61,16,69],[18,4,18,72],[20,6,20,72],[22,8,22,72],[24,8,24,72],[26,4,26,72],[28,4,28,72],[30,4,30,72],[31,4,31,72],[32,4,32,72],[34,5,34,72],[36,4,36,72],[41,4,41,30],[42,4,42,10],[42,36,42,72],[43,36,43,72],[44,36,44,72],[46,4,46,9],[46,13,46,72],[48,13,48,72],[50,13,50,72],[52,13,52,72],[54,13,54,72],[56,13,56,72],[58,13,58,72],[60,13,60,72],[62,13,62,72],[64,13,64,71],[67,4,67,39],[70,5,70,39],[71,5,71,39],[72,5,72,39],[80,6,80,20],[80,59,80,72]]}
[]
[]
[{"$nulls":3},""]
[]
[]
[]
[{"$nulls":4},"Steuernummer",{"$nulls":7},{"$f":"IF(ZFaSteuernummer=\"\",\"\",ZFaSteuernummer)","v":""}]
[]
[]
[{"$nulls":4},"7.9 Umsatzsteuer-Identifikationsnummer"]
[]
[{"$nulls":6},"Wir benötigen für die Teilnahme am innergemeinschaftlichen Waren- und Dienstleistungsverkehr eine USt-IdNr."]
[]
[]
[{"$nulls":6},"Wir haben bereits für eine frühere Tätigkeit folgende USt-IdNr. erhalten:"]
[]
[{"$nulls":6},"USt-IdNr.",{"$nulls":29},"Vergabedatum:  ",{"$nulls":24},"      (TT.MM.JJJJ)"]
[]
[{"$nulls":4},"7.10 Steuerschuldnerschaft des Leistungsempfängers bei Bau- und/oder Gebäudereinigungsleistungen"]
[]
[{"$nulls":6},"Es wird die Erteilung eines Nachweises zur Steuerschuldnerschaft des Leistungsempfängers bei Bau- und/oder Gebäudereini-"]
[]
[{"$nulls":8}," Der Umfang der ausgeführten Bauleistungen i. S. des § 13b Abs. 2 Nr. 4 UStG beträgt voraussichtlich mehr als"]
[]
[{"$nulls":8}," Der Umfang der ausgeführten Gebäudereinigungsleistungen i. S. des § 13b Abs. 2 Nr. 8 UStG beträgt voraussichtlich"]
[]
[{"$nulls":4},"Hinweis: Die Voraussetzungen zur Erteilung der Bescheinigung sind in geeigneter Weise in einer Anlage glaubhaft zu machen."]
[]
[{"$nulls":4},"7.11 Besonderes Besteuerungsverfahren „Mini-one-stop-shop“"]
[]
[{"$nulls":4},"Nur bei Ausführung von Telekommunikationsleistungen, Rundfunk- und Fernsehdienstleistungen oder auf elektronischem Weg"]
[{"$nulls":4},"erbrachten sonstigen Leistungen durch einen in einem anderen EU-Mitgliedstaat ansässigen Unternehmer an einen im Inland"]
[{"$nulls":4},"ansässigen Nichtunternehmer:"]
[]
[{"$nulls":5}," Wir nehmen das besondere Besteuerungsverfahren („Mini-one-stop-shop“) in Anspruch. Die entsprechenden Umsätze"]
[]
[{"$nulls":4},"Hinweis: Die mit diesem Fragebogen angeforderten Daten werden aufgrund der §§ 85, 88, 90, 93 und 97 AO erhoben."]
[]
[]
[]
[]
[]
[{"$nulls":4},"Ort, Datum",{"$nulls":31},"Unterschrift(en) vertretungsberechtigte(r) Geschäftsführer(in)"]
[{"$nulls":36},"oder Gesellschafter(in)/Beteiligte(r) bzw. aller Gesellschafter/Beteiligten"]
[{"$nulls":36},"bzw. des/der Vertreter(s) oder Bevollmächtigte(n)"]
[]
[{"$nulls":4},"Anlagen:",{"$nulls":8},"Aufstellung über Betriebsstätten (Tz. 1.2)"]
[]
[{"$nulls":13},"Verträge über die Übernahme/Einbringung/Umwandlung/Verschmelzung eines Unternehmens (Tz. 1.3)"]
[]
[{"$nulls":13},"Vertrag über die Gesellschaft/Gemeinschaft (Tz. 1.3)"]
[]
[{"$nulls":13},"Erklärung über die gesellschaftsrechtlichen Vereinbarungen (Tz. 1.3)"]
[]
[{"$nulls":13},"Gesellschaftsvertrag der Komplementär-GmbH (Tz. 1.4)"]
[]
[{"$nulls":13},"Teilnahmeerklärung für das SEPA-Lastschriftverfahren (Tz. 1.7)"]
[]
[{"$nulls":13},"Empfangsvollmacht (Tz. 1.10)"]
[]
[{"$nulls":13},"Auflistung der Gesellschafter (Tz. 2) (Anlage FB)"]
[]
[{"$nulls":13},"Weitere organschaftliche Verbindungen (Tz. 7.4)"]
[]
[]
[]
[]
[{"$nulls":4},"  Finanzamt"]
{"$rows_empty":12}
[{"$nulls":6},"2016FsEPG027",{"$nulls":52},"2016FsEPG027       "]

{"sheet":"Attribute","index":7,"n_rows":6,"n_cols":3,"rows_kept":6,"hidden":true}
["KAW-Variable","Wert","Bezeichnung"]
["KAW020001",{"$f":"IF(Mandantennummer=\"\",\"\",Mandantennummer)","v":""},"Nummer"]
["KAW010101",{"$f":"IF(FirstRun=\"\",\"\",YEAR(FirstRun))","v":2017},"Jahr"]
["KAW010102",{"$f":"IF(FirstRun=\"\",\"\",MONTH(FirstRun))","v":3},"Monat"]
["KAW010103","Fragebogen - Gründung Personengesellschaft/-gemeinschaft","Beschreibung"]
["KAW010105","Fragebogen, Gründung Personengesellschaft, Gründung Personengemeinschaft","Stichworte"]

{"sheet":"Drucken","index":8,"n_rows":8,"n_cols":12,"rows_kept":8,"hidden":true}
["Sheetname","Header","Caption","Checked","Druck","Linebreak","WithBlankSheet","BlankSheetName","Seiten","Drucker","BeraterMandant","Duplex"]
["Seite 1","Header",null,"true",true,{"$nulls":3},1,null,true,true]
["Seite 2","Header2",null,"true",true,{"$nulls":3},1]
["Seite 3","Header3",null,"true",true,{"$nulls":3},1]
["Seite 4","Header4",null,"true",true,{"$nulls":3},1]
["Seite 5","Header5",null,"true",true,{"$nulls":3},1]
["Seite 6","Header6",null,"true",true,{"$nulls":3},1]
["Seite 7","Header7",null,"true",true,{"$nulls":3},1]

{"sheet":"Eintragung","index":9,"n_rows":167,"n_cols":17,"rows_kept":167,"hidden":true}
["Art","Person","Betrieb","VF","Quelle / Ziel","Wert","VF","Wert 1","Wert 2","Wert 3","Wert 4","Wert 5","Wert 6","Wert 7","Wert 8","Wert 9","Wert 10"]
["ZMSD",null,"$Mandant.Nummer",null,"Mandantennummer",""]
["ZMSD",null,"$Betrieb.Hauptfinanzamt.Info.Bezeichnung1",null,"FaBezeichnung",""]
["ZMSD",null,"$Betrieb.Hauptfinanzamt.Info.Korrespondenz.Strasse",null,"FaStrasse",""]
["ZMSD",null,"$Betrieb.Hauptfinanzamt.Info.Korrespondenz.PLZ",null,"FaPLZ",""]
["ZMSD",null,"$Betrieb.Hauptfinanzamt.Info.Korrespondenz.Ort",null,"FaOrt",""]
["ZMSD",null,"$Betrieb.Hauptfinanzamt.Info.Korrespondenz.Postfach",null,"FaPostfach",""]
["ZMSD",null,"$Betrieb.Hauptfinanzamt.Steuernummer",null,"FaSteuernummer",""]
["ZMSD",null,"$Betrieb.Unternehmensbezeichnung",null,"UntBezeichnung",""]
["ZMSD",null,"$Betrieb.Unternehmensgegenstand",null,"UntGegenstand",""]
["ZMSD",null,"$Betrieb.Hauptstrasse.Strasse",null,"UntStrasse",""]
["ZMSD",null,"$Betrieb.Hauptstrasse.PLZ",null,"UntPLZ",""]
["ZMSD",null,"$Betrieb.Hauptstrasse.Ort",null,"UntOrt",""]
["ZMSD",null,"$Betrieb.Hauptpostfach.Postfach",null,"UntPostfach",""]
["ZMSD",null,"$Betrieb.Hauptpostfach.PLZ",null,"UntPLZPostfach",""]
["ZMSD",null,"$Betrieb.Hauptpostfach.Ort",null,"UntOrtPostfach",""]
["ZMSD",null,"$Betrieb.Geschaeftsleitung.Strasse",null,"GlStrasse",""]
["ZMSD",null,"$Betrieb.Geschaeftsleitung.PLZ",null,"GlPLZ",""]
["ZMSD",null,"$Betrieb.Geschaeftsleitung.Ort",null,"GlOrt",""]
["ZMSD",null,"$Betrieb.Haupttelefon.Nummer",null,"UntTelefon",""]
["ZMSD",null,"$Betrieb.Haupttelefax.Nummer",null,"UntTelefax",""]
["ZMSD",null,"$Betrieb.Hauptemail.Nummer",null,"UntEMail",""]
["ZMSD",null,"$Betrieb.Kommunikation[].Medium",10,"UntKommMedium","",null,"","","","","","","","","",""]
["ZMSD",null,"$Betrieb.Kommunikation[].Nummer",10,"UntKommNummer","",null,"","","","","","","","","",""]
["ZMSD",null,"$Betrieb.Unternehmensform",null,"Unternehmensform",""]
["ZMSD",null,"$Betriebsstaette[].Unternehmen.Unternehmensbezeichnung",10,"BsBezeichnung","",0,"","","","","","","","","",""]
["ZMSD",null,"$Betriebsstaette[].Unternehmen.Hauptstrasse.Strasse",10,"BsStrasse","",null,"","","","","","","","","",""]
["ZMSD",null,"$Betriebsstaette[].Unternehmen.Hauptstrasse.PLZ",10,"BsPLZ","",null,"","","","","","","","","",""]
["ZMSD",null,"$Betriebsstaette[].Unternehmen.Hauptstrasse.Ort",10,"BsOrt","",null,"","","","","","","","","",""]
["ZMSD",null,"$Betriebsstaette[].Unternehmen.Haupttelefon.Nummer",10,"BsTelefon","",null,"","","","","","","","","",""]
["ZMSD",null,"$GesetzlicherVertreterUnternehmen.Unternehmensbezeichnung",null,"GesetzlVertrBetrieb"]
["ZMSD",null,"$GesetzlicherVertreterUnternehmen.Nachname",null,"GesetzlVertrName",""]
["ZMSD",null,"$GesetzlicherVertreterUnternehmen.Vorname",null,"GesetzlVertrVorname"]
["ZMSD",null,"$GesetzlicherVertreterUnternehmen.TitelAkademischerGrad",null,"GesetzlVertrTitel",""]
["ZMSD",null,"$GesetzlicherVertreterUnternehmen.Hauptstrasse.Strasse",null,"GesetzlVertrStrasse",""]
["ZMSD",null,"$GesetzlicherVertreterUnternehmen.Hauptstrasse.PLZ",null,"GesetzlVertrPLZ",""]
["ZMSD",null,"$GesetzlicherVertreterUnternehmen.Hauptstrasse.Ort",null,"GesetzlVertrOrt",""]
["ZMSD",null,"$GesetzlicherVertreterUnternehmen.Hauptpostfach.PLZ",null,"GesetzlVertrPLZPostfach"]
["ZMSD",null,"$GesetzlicherVertreterUnternehmen.Hauptpostfach.Ort",null,"GesetzlVertrOrtPostfach"]
["ZMSD",null,"$GesetzlicherVertreterUnternehmen.Hauptpostfach.Postfach",null,"GesetzlVertrPostfach"]
["ZMSD",null,"$GesetzlicherVertreterUnternehmen.PersoenlicheDaten.Geburt.Datum",null,"GesVertrGeb"]
["ZMSD",null,"$GesetzlicherVertreterUnternehmen.PersoenlicheDaten.Identifikationsnummer",null,"GesVertrId"]
["ZMSD",null,"$GesetzlicherVertreterUnternehmen.Hauptfinanzamt.Info.Bezeichnung1",null,"GesVertrFin"]
["ZMSD",null,"$GesetzlicherVertreterUnternehmen.Hauptfinanzamt.Steuernummer",null,"GesVertrSteuer"]
["ZMSD",null,"$GesetzlicherVertreterUnternehmen.Haupttelefon.Nummer",null,"GesetzlVertrTelefon",""]
["ZMSD",null,"$GesetzlicherVertreterUnternehmen.Haupttelefax.Nummer",null,"GesetzlVertrTelefax",""]
["ZMSD",null,"$GesetzlicherVertreterUnternehmen.Hauptemail.Nummer",null,"GesetzlVertrEMail",""]
["ZMSD",null,"$GesetzlicherVertreterUnternehmen.Kommunikation[].Medium",10,"GesetzlVertrMedium","",null,"","","","","","","","","",""]
["ZMSD",null,"$GesetzlicherVertreterUnternehmen.Kommunikation[].Nummer",10,"GesetzlVertrNummer","",null,"","","","","","","","","",""]
["ZMSD",null,"$Betrieb.BetrieblicheDaten.Register.Gericht",null,"Registergericht"]
["ZMSD",null,"$Betrieb.BetrieblicheDaten.Register.Gerichtsnummer",null,"RegisterNr"]
["ZMSD",null,"$Betrieb.BetrieblicheDaten.Register.Art",null,"RegisterEintrag",""]
["ZMSD",null,"$Betrieb.BetrieblicheDaten.Register.EintragAm",null,"RegisterEintragDatum","",null,"Länge=8?","Beginn abweichend?","Ende abweichend?","Dauer 12 Monate?","Innerhalb Kalenderjahr?"]
["ZMSD",null,"$Betrieb.BetrieblicheDaten.Wirtschaftsjahr",null,"AbwWirtschaftsjahr","",null,{"$f":"IF(LEN(AbwWirtschaftsjahr)=8,TRUE,FALSE)","v":false},{"$f":"IF(LEFT(AbwWirtschaftsjahr,4)=\"0101\",FALSE,TRUE)","v":true},{"$f":"IF(RIGHT(AbwWirtschaftsjahr,4)=\"3112\",FALSE,TRUE)","v":true},{"$f":"IF(H54,IF(OR(DATE(YEAR(TODAY()),VALUE(MID(AbwWirtschaftsjahr,7,2)),VALUE(MID(AbwWirtschaftsjahr,5,2)))+1=DATE(YEAR(TODAY()),VALUE(MID(AbwWirtschaftsjahr,3,2)),VALUE(MID(AbwWirtschaftsjahr,1,2))),NOT(OR(I54,J54))),TRUE,FALSE),TRUE)","v":true},{"$f":"IF(H54,IF(VALUE(MID(AbwWirtschaftsjahr,3,2))>VALUE(MID(AbwWirtschaftsjahr,7,2)),FALSE,TRUE),TRUE)","v":true}]
["ZMSD",null,"$Betrieb.Umsatzsteuer.UmsatzsteuerId",null,"USt_IdNr"]
["ZMSD",null,"$Betrieb.Bank[].Bankkonto.Info.Bezeichnung1",30,"UntBankName","",0,"","","","","","","","","",""]
["ZMSD",null,"$Betrieb.Bank[].Bankkonto.Info.BIC",30,"UntBankBIC"]
["ZMSD",null,"$Betrieb.Bank[].Bankkonto.IBAN",30,"UntBankIBAN"]
["ZMSD",null,"$Betrieb.Bank[].AbwKontoinhaber",30,"UntBankAbweicher","",null,"","","","","","","","","",""]
["ZMSD",null,"$Betrieb.Bank[].Bankkonto.Info.Hauptstrasse.Ort",30,"UntBankOrt","",null,"","","","","","","","","",""]
["ZMSD",null,"$Betrieb.Hauptbank.Bankkonto.IBAN",null,"UntBankHauptIBAN",null,{"$f":"IF(UntBankHauptIBAN<>\"\",IF(ISNA(MATCH(UntBankHauptIBAN,H58:IV58,0)),0,MATCH(UntBankHauptIBAN,H58:IV58,0)),0)","v":0}]
["ZMSD",null,"$EmpfangsbevollmaechtigerUnternehmen.Unternehmensbezeichnung",null,"EmpfBezeichnung"]
["ZMSD",null,"$EmpfangsbevollmaechtigerUnternehmen.Vorname",null,"EmpfVorname",""]
["ZMSD",null,"$EmpfangsbevollmaechtigerUnternehmen.Nachname",null,"EmpfName",""]
["ZMSD",null,"$EmpfangsbevollmaechtigerUnternehmen.TitelAkademischerGrad",null,"EmpfTitel",""]
["ZMSD",null,"$EmpfangsbevollmaechtigerUnternehmen.Hauptstrasse.Strasse",null,"EmpfStrasse",""]
["ZMSD",null,"$EmpfangsbevollmaechtigerUnternehmen.Hauptstrasse.PLZ",null,"EmpfPLZ",""]
["ZMSD",null,"$EmpfangsbevollmaechtigerUnternehmen.Hauptstrasse.Ort",null,"EmpfOrt",""]
["ZMSD",null,"$EmpfangsbevollmaechtigerUnternehmen.Hauptpostfach.PLZ",null,"EmpfPLZPostfach"]
["ZMSD",null,"$EmpfangsbevollmaechtigerUnternehmen.Hauptpostfach.Ort",null,"EmpfOrtPostfach"]
["ZMSD",null,"$EmpfangsbevollmaechtigerUnternehmen.Hauptpostfach.Postfach",null,"EmpfPostfach"]
["ZMSD",null,"$EmpfangsbevollmaechtigerUnternehmen.Haupttelefon.Nummer",null,"EmpfTelefon",""]
["ZMSD",null,"$EmpfangsbevollmaechtigerUnternehmen.Haupttelefax.Nummer",null,"EmpfTelefax",""]
["ZMSD",null,"$EmpfangsbevollmaechtigerUnternehmen.Hauptemail.Nummer",null,"EmpfEMail",""]
["COPY",{"$nulls":3},"ZFaBezeichnung1",{"$f":"IF(FaBezeichnung=\"\",\"\",FaBezeichnung)","v":""}]
["COPY",{"$nulls":3},"ZFaBezeichnung2",{"$f":"IF(FaBezeichnung=\"\",\"\",FaBezeichnung)","v":""}]
["COPY",{"$nulls":3},"ZFaStrasse",{"$f":"IF(FaPostfach=\"\",IF(FaStrasse=\"\",\"\",FaStrasse),\"Postfach \"&FaPostfach)","v":""}]
["COPY",{"$nulls":3},"ZFaPLZOrt",{"$f":"IF(FaPLZ=\"\",\"\",FaPLZ&\" \")&IF(FaOrt=\"\",\"\",FaOrt)","v":""}]
["COPY",{"$nulls":3},"ZFaSteuernummer",{"$f":"IF(FaSteuernummer=\"\",\"\",FaSteuernummer)","v":""}]
["COPY",{"$nulls":3},"ZUntBezeichnung",{"$f":"IF(UntBezeichnung=\"\",\"\",UntBezeichnung)","v":""}]
["COPY",{"$nulls":3},"ZUntGegenstand1",{"$f":"IF(UntGegenstand=\"\",\"\",UntGegenstand)","v":""}]
["COPY",{"$nulls":3},"ZUntGegenstand2",{"$f":"\"\"","v":""}]
["COPY",{"$nulls":3},"ZUntStrasse",{"$f":"IF(UntStrasse<>\"\",UntStrasse,\"\")","v":""}]
["COPY",{"$nulls":3},"ZUntPLZ",{"$f":"IF(UntPLZ<>\"\",UntPLZ,\"\")","v":""}]
["COPY",{"$nulls":3},"ZUntOrt",{"$f":"IF(UntOrt<>\"\",UntOrt,\"\")","v":""}]
["COPY",{"$nulls":3},"ZUntPLZPostfach",{"$f":"IF(UntPLZPostfach=\"\",\"\",UntPLZPostfach)","v":""}]
["COPY",{"$nulls":3},"ZUntOrtPostfach",{"$f":"IF(UntOrtPostfach=\"\",\"\",UntOrtPostfach)","v":""}]
["COPY",{"$nulls":3},"ZUntPostfach",{"$f":"IF(UntPostfach=\"\",\"\",UntPostfach)","v":""}]
["COPY",{"$nulls":3},"ZGlStrasse",{"$f":"IF(GlStrasse<>\"\",GlStrasse,\"\")","v":""}]
["COPY",{"$nulls":3},"ZGlPLZ",{"$f":"IF(GlPLZ<>\"\",GlPLZ,\"\")","v":""}]
["COPY",{"$nulls":3},"ZGlOrt",{"$f":"IF(GlOrt<>\"\",GlOrt,\"\")","v":""}]
["COPY",{"$nulls":3},"ZUntTelefon",{"$f":"IF(UntTelefon=\"\",\"\",UntTelefon)","v":""}]
["COPY",{"$nulls":3},"ZUntEMail",{"$f":"IF(UntEMail=\"\",\"\",UntEMail)","v":""}]
["COPY",{"$nulls":3},"ZUntInternet",{"$f":"IF(ISNA(HLOOKUP(\"3\",H23:Q24,2,FALSE)),\"\",HLOOKUP(\"3\",H23:Q24,2,FALSE))","v":""}]
["COPY",{"$nulls":3},"ZBsBezeichnung1",{"$f":"IF(H26=\"\",\"\",H26)","v":""}]
["COPY",{"$nulls":3},"ZBsPLZ1",{"$f":"IF(H28=\"\",\"\",H28)","v":""}]
["COPY",{"$nulls":3},"ZBsOrt1",{"$f":"IF(H29=\"\",\"\",H29)","v":""}]
["COPY",{"$nulls":3},"ZBsStrasse1",{"$f":"IF(H27=\"\",\"\",H27)","v":""}]
["COPY",{"$nulls":3},"ZBsTelefon1",{"$f":"IF(H30=\"\",\"\",H30)","v":""}]
["COPY",{"$nulls":3},"ZBsBezeichnung2",{"$f":"IF(I26=\"\",\"\",I26)","v":""}]
["COPY",{"$nulls":3},"ZBsPLZ2",{"$f":"IF(I28=\"\",\"\",I28)","v":""}]
["COPY",{"$nulls":3},"ZBsOrt2",{"$f":"IF(I29=\"\",\"\",I29)","v":""}]
["COPY",{"$nulls":3},"ZBsStrasse2",{"$f":"IF(I27=\"\",\"\",I27)","v":""}]
["COPY",{"$nulls":3},"ZBsTelefon2",{"$f":"IF(I30=\"\",\"\",I30)","v":""}]
["COPY",{"$nulls":3},"ZBsBezeichnung",{"$f":"IF(BsBezeichnung=\"\",\"\",BsBezeichnung)","v":""}]
["COPY",{"$nulls":3},"ZBsStrasse",{"$f":"IF(BsStrasse=\"\",\"\",BsStrasse)","v":""}]
["COPY",{"$nulls":3},"ZBsPLZ",{"$f":"IF(BsPLZ=\"\",\"\",BsPLZ)","v":""}]
["COPY",{"$nulls":3},"ZBsOrt",{"$f":"IF(BsOrt=\"\",\"\",BsOrt)","v":""}]
["COPY",{"$nulls":3},"ZUntBankName",{"$f":"IF(UntBankName=\"\",\"\",UntBankName)&IF(UntBankOrt=\"\",\"\",\", \"&UntBankOrt)","v":""}]
["COPY",{"$nulls":3},"ZUntBankBIC",{"$f":"IF(UntBankBIC=\"\",\"\",UntBankBIC)","v":""}]
["COPY",{"$nulls":3},"ZUntBankIBAN",{"$f":"IF(UntBankIBAN=\"\",\"\",UntBankIBAN)","v":""}]
["COPY",{"$nulls":3},"ZUntBankAbweicher",{"$f":"IF(UntBankAbweicher=\"\",\"\",UntBankAbweicher)","v":""}]
["COPY",{"$nulls":3},"ZRegistergericht",{"$f":"IF(RegisterEintrag=\"HAN\",IF(Registergericht=\"\",\"\",Registergericht),\"\")","v":""}]
["COPY",{"$nulls":3},"ZRegisterNr",{"$f":"IF(RegisterEintrag=\"HAN\",IF(RegisterNr=\"\",\"\",RegisterNr),\"\")","v":""}]
["COPY",{"$nulls":3},"ZRegisterEintragDatum",{"$f":"IF(RegisterEintrag=\"HAN\",Datumkonvert(RegisterEintragDatum),\"\")","v":""}]
["COPY",{"$nulls":3},"ZAbwWjVon",{"$f":"IF(AND(H54,I54,J54,K54),MID(AbwWirtschaftsjahr,1,2) & \".\" & MID(AbwWirtschaftsjahr,3,2) & \".\" & IF(L54,YEAR(NOW()),YEAR(NOW())-1),\"\")","v":""}]
["COPY",{"$nulls":3},"ein_rx_12_1",{"$f":"\"\"","v":""}]
["COPY",{"$nulls":3},"ein_rx_12_2",{"$f":"IF(F116=\"\",\"\",\"X\")","v":""}]
["COPY",{"$nulls":3},"ZUSt_IdNr",{"$f":"IF(USt_IdNr=\"\",\"\",USt_IdNr)","v":""}]
["COPY",{"$nulls":3},"ZGesetzlVertrBetrieb",{"$f":"IF(GesetzlVertrBetrieb=\"\",\"\",GesetzlVertrBetrieb)","v":""}]
["COPY",{"$nulls":3},"ZGesetzlVertrName",{"$f":"IF(OR(GesetzlVertrBetrieb<>\"\",GesetzlVertrName=\"\"),\"\",GesetzlVertrName)&IF(GesetzlVertrTitel=\"\",\"\",\", \"&GesetzlVertrTitel)","v":""}]
["COPY",{"$nulls":3},"ZGesetzlVertrVorname",{"$f":"IF(OR(GesetzlVertrBetrieb<>\"\",GesetzlVertrVorname=\"\"),\"\",GesetzlVertrVorname)","v":""}]
["COPY",{"$nulls":3},"ZGesetzlVertrStrasse",{"$f":"IF(GesetzlVertrStrasse=\"\",\"\",GesetzlVertrStrasse)","v":""}]
["COPY",{"$nulls":3},"ZGesetzlVertrPLZ",{"$f":"IF(GesetzlVertrPLZ=\"\",\"\",GesetzlVertrPLZ)","v":""}]
["COPY",{"$nulls":3},"ZGesetzlVertrOrt",{"$f":"IF(GesetzlVertrOrt=\"\",\"\",GesetzlVertrOrt)","v":""}]
["COPY",{"$nulls":3},"ZGesetzlVertrPLZPostfach",{"$f":"IF(GesetzlVertrPLZPostfach=\"\",\"\",GesetzlVertrPLZPostfach)","v":""}]
["COPY",{"$nulls":3},"ZGesetzlVertrOrtPostfach",{"$f":"IF(GesetzlVertrOrtPostfach=\"\",\"\",GesetzlVertrOrtPostfach)","v":""}]
["COPY",{"$nulls":3},"ZGesetzlVertrPostfach",{"$f":"IF(GesetzlVertrPostfach=\"\",\"\",GesetzlVertrPostfach)","v":""}]
["COPY",{"$nulls":3},"ZGesVertrGeb",{"$f":"Datumkonvert(GesVertrGeb)","v":""}]
["COPY",{"$nulls":3},"ZGesVertrId",{"$f":"IF(GesVertrId=\"\",\"\",GesVertrId)","v":""}]
["COPY",{"$nulls":3},"ZGesVertrFin",{"$f":"IF(GesVertrFin=\"\",\"\",GesVertrFin)","v":""}]
["COPY",{"$nulls":3},"ZGesVertrSteuer",{"$f":"IF(GesVertrSteuer=\"\",\"\",GesVertrSteuer)","v":""}]
["COPY",{"$nulls":3},"ZGesetzlVertrTel",{"$f":"IF(GesetzlVertrTelefon=\"\",\"\",GesetzlVertrTelefon)","v":""}]
["COPY",{"$nulls":3},"ZGesetzlVertrEmail",{"$f":"IF(GesetzlVertrEMail=\"\",\"\",GesetzlVertrEMail)","v":""}]
["COPY",{"$nulls":3},"ZGesetzlVertrInternet",{"$f":"IF(ISNA(HLOOKUP(\"3\",H48:Q49,2,FALSE)),\"\",HLOOKUP(\"3\",H48:Q49,2,FALSE))","v":""}]
["COPY",{"$nulls":3},"ZEmpfBezeichnung",{"$f":"IF(EmpfBezeichnung=\"\",\"\",EmpfBezeichnung)","v":""}]
["COPY",{"$nulls":3},"ZEmpfName",{"$f":"IF(EmpfBezeichnung<>\"\",\"\",IF(EmpfName=\"\",\"\",EmpfName)&IF(EmpfTitel=\"\",\"\",\", \"&EmpfTitel))","v":""}]
["COPY",{"$nulls":3},"ZEmpfVorname",{"$f":"IF(EmpfBezeichnung<>\"\",\"\",IF(EmpfVorname=\"\",\"\",EmpfVorname))","v":""}]
["COPY",{"$nulls":3},"ZEmpfStrasse",{"$f":"IF(EmpfStrasse=\"\",\"\",EmpfStrasse)","v":""}]
["COPY",{"$nulls":3},"ZEmpfPLZ",{"$f":"IF(EmpfPLZ=\"\",\"\",EmpfPLZ)","v":""}]
["COPY",{"$nulls":3},"ZEmpfOrt",{"$f":"IF(EmpfOrt=\"\",\"\",EmpfOrt)","v":""}]
["COPY",{"$nulls":3},"ZEmpfPLZPostfach",{"$f":"IF(EmpfPLZPostfach=\"\",\"\",EmpfPLZPostfach)","v":""}]
["COPY",{"$nulls":3},"ZEmpfOrtPostfach",{"$f":"IF(EmpfOrtPostfach=\"\",\"\",EmpfOrtPostfach)","v":""}]
["COPY",{"$nulls":3},"ZEmpfPostfach",{"$f":"IF(EmpfPostfach=\"\",\"\",EmpfPostfach)","v":""}]
["COPY",{"$nulls":3},"ZEmpfTelefon",{"$f":"IF(EmpfTelefon=\"\",\"\",EmpfTelefon)","v":""}]
["COPY",{"$nulls":3},"ZEmpfEMail",{"$f":"IF(EmpfEMail=\"\",\"\",EmpfEMail)","v":""}]
["COPY",{"$nulls":3},"ein_x_10",{"$f":"IF(USt_IdNr=\"\",\"\",\"X\")","v":""}]
["COPY",{"$nulls":3},"ein_rx_1_1",{"$f":"\"\"","v":""}]
["COPY",{"$nulls":3},"ein_rx_1_2",{"$f":"IF(OR(F95<>\"\",F100<>\"\"),\"X\",\"\")","v":""}]
["COPY",{"$nulls":3},"ein_rx_3_1",{"$f":"IF(Unternehmensform=\"6\",\"X\",\"\")","v":""}]
["COPY",{"$nulls":3},"ein_rx_3_2",{"$f":"\"\"","v":""}]
["COPY",{"$nulls":3},"ein_rx_3_3",{"$f":"IF(Unternehmensform=\"4\",\"X\",\"\")","v":""}]
["COPY",{"$nulls":3},"ein_rx_3_4",{"$f":"\"\"","v":""}]
["COPY",{"$nulls":3},"ein_rx_3_5",{"$f":"IF(Unternehmensform=\"5\",\"X\",\"\")","v":""}]
["COPY",{"$nulls":3},"ein_rx_3_6",{"$f":"IF(Unternehmensform=\"7\",\"X\",\"\")","v":""}]
["COPY",{"$nulls":3},"ein_rx_3_7",{"$f":"\"\"","v":""}]
["COPY",{"$nulls":3},"ein_rx_3_8",{"$f":"IF(F166=\"\",\"\",\"X\")","v":""}]
["COPY",{"$nulls":3},"ein_rx_4_1",{"$f":"IF(RegisterEintrag=\"HAN\",\"X\",\"\")","v":""}]
["COPY",{"$nulls":3},"ein_rx_4_2",{"$f":"\"\"","v":""}]
["COPY",{"$nulls":3},"ein_rx_5_1",{"$f":"\"\"","v":""}]
["COPY",{"$nulls":3},"ein_rx_5_2",{"$f":"\"\"","v":""}]
["COPY",{"$nulls":3},"ein_d_6",{"$f":"\"\"","v":""}]
["COPY",{"$nulls":3},"ein_x_23",{"$f":"\"\"","v":""}]
["COPY",{"$nulls":3},"ein_x_24",{"$f":"\"\"","v":""}]
["COPY",{"$nulls":3},"ein_x_25",{"$f":"\"\"","v":""}]
["COPY",{"$nulls":3},"SonstRechtsform",{"$f":"Rechtsformkonvert(Unternehmensform)","v":""}]
["COPY",{"$nulls":3},"ZOrtDatum",{"$f":"IF(UntOrt=\"\",\"\",UntOrt&\", \")&TEXT(TODAY(),\"TT.MM.JJJJ\")","v":"23.03.2017"}]

{"sheet":"Kanzleidaten","index":10,"n_rows":33,"n_cols":3,"rows_kept":33,"hidden":true}
["Aktion","Quelle / Ziel","Wert"]
["KANZLEI","KDBezeichnung1"]
["KANZLEI","KDBezeichnung2"]
["KANZLEI","KDStrasse_alt"]
["KANZLEI","KDStrasse"]
["KANZLEI","KDAdresszusatz"]
["KANZLEI","KDHausnummer"]
["KANZLEI","KDHausnummerZusatz"]
["KANZLEI","KDPLZ"]
["KANZLEI","KDOrt"]
["KANZLEI","KDTel"]
["KANZLEI","KDFax"]
["KANZLEI","KDMobil"]
["KANZLEI","KDEmail"]
["KANZLEI","KDInternet"]
["CopyStB","ZStBBezeichnung",{"$f":"IF(KDBezeichnung1=\"\",\"\",KDBezeichnung1 & \" \")&IF(KDBezeichnung2=\"\",\"\",KDBezeichnung2)","v":""}]
["CopyStB","ZStBStrasse",{"$f":"IF(KDStrasse=\"\",IF(KDStrasse_alt=\"\",\"\",KDStrasse_alt),KDStrasse)","v":""}]
["CopyStB","ZStBHausnummer",{"$f":"IF(KDHausnummer=\"\",\"\",KDHausnummer)","v":""}]
["CopyStB","ZStBHausnummerZusatz",{"$f":"IF(KDHausnummerZusatz=\"\",\"\",KDHausnummerZusatz)","v":""}]
["CopyStB","ZStBAdressergaenzung",{"$f":"IF(KDAdresszusatz=\"\",\"\",KDAdresszusatz)","v":""}]
["CopyStB","ZStBPLZ",{"$f":"IF(KDPLZ=\"\",\"\",KDPLZ)","v":""}]
["CopyStB","ZStBOrt",{"$f":"IF(KDOrt=\"\",\"\",KDOrt)","v":""}]
["CopyStB","ZStBTel",{"$f":"IF(KDTel=\"\",IF(KDMobil=\"\",\"\",KDMobil),KDTel)","v":""}]
["CopyStB","ZStBEmail",{"$f":"IF(KDEMail=\"\",\"\",KDEMail)","v":""}]
["CopyEmpf","ZEmpfBezeichnung",{"$f":"IF(KDBezeichnung1=\"\",\"\",KDBezeichnung1 & \" \")&IF(KDBezeichnung2=\"\",\"\",KDBezeichnung2)","v":""}]
["CopyEmpf","ZEmpfStrasse",{"$f":"IF(KDStrasse=\"\",IF(KDStrasse_alt=\"\",\"\",KDStrasse_alt),KDStrasse)","v":""}]
["CopyEmpf","ZEmpfHausnummer",{"$f":"IF(KDHausnummer=\"\",\"\",KDHausnummer)","v":""}]
["CopyEmpf","ZEmpfHausnummerZusatz",{"$f":"IF(KDHausnummerZusatz=\"\",\"\",KDHausnummerZusatz)","v":""}]
["CopyEmpf","ZEmpfAdressergaenzung",{"$f":"IF(KDAdresszusatz=\"\",\"\",KDAdresszusatz)","v":""}]
["CopyEmpf","ZEmpfPLZ",{"$f":"IF(KDPLZ=\"\",\"\",KDPLZ)","v":""}]
["CopyEmpf","ZEmpfOrt",{"$f":"IF(KDOrt=\"\",\"\",KDOrt)","v":""}]
["CopyEmpf","ZEmpfTelefon",{"$f":"IF(KDTel=\"\",IF(KDMobil=\"\",\"\",KDMobil),KDTel)","v":""}]
["CopyEmpf","ZEmpfEMail",{"$f":"IF(KDEMail=\"\",\"\",KDEMail)","v":""}]

{"sheet":"Stammdaten","index":11,"n_rows":8,"n_cols":2,"rows_kept":8,"hidden":true}
["Stammdaten"]
["ToolName","Neuanlage eines Mandats"]
["ToolVersion","V.4.2"]
["ToolDatum","(13.12.2016)"]
["ToolInfo",{"$f":"ToolName&\" \"&ToolVersion&\" \"&ToolDatum","v":"Neuanlage eines Mandats V.4.2 (13.12.2016)"}]
["Eingabekontrolle",true]
["Header",{"$f":"IF(ZUntBezeichnung=\"\",IF(ZFaSteuernummer=\"\",\"\",ZFaSteuernummer),ZUntBezeichnung&IF(ZFaSteuernummer=\"\",\"\",\" / \"&ZFaSteuernummer))","v":""}]
["FirstRun","23.03.2017"]